[Event "*** Titled Tuesday Blitz"]
[Site "Chess.com"]
[Date "2020.05.26"]
[Round "10"]
[White "Evgeny81"]
[Black "kingmonkey2006"]
[Result "1-0"]
[WhiteElo "2719"]
[BlackElo "2581"]
[TimeControl "180+1"]
[EndTime "12:03:57 PDT"]
[Termination "Evgeny81 won by checkmate"]

1. e4 {[%clk 0:03:00.9]} 1... c5 {[%clk 0:02:59.4]} 2. Nf3 {[%clk 0:03:00.1]}
2... d6 {[%clk 0:02:59.7]} 3. d4 {[%clk 0:03:00.4]} 3... cxd4 {[%clk 0:03:00.6]}
4. Nxd4 {[%clk 0:03:00.9]} 4... Nf6 {[%clk 0:03:01.3]} 5. Nc3 {[%clk 0:03:01.2]}
5... a6 {[%clk 0:03:01.9]} 6. Bg5 {[%clk 0:02:59.5]} 6... e6 {[%clk 0:02:54]} 7.
f4 {[%clk 0:02:56.8]} 7... Nbd7 {[%clk 0:02:54.2]} 8. Qf3 {[%clk 0:02:53.6]}
8... h6 {[%clk 0:02:47.9]} 9. Bh4 {[%clk 0:02:52.9]} 9... e5 {[%clk 0:02:48.1]}
10. Nde2 {[%clk 0:02:46.8]} 10... exf4 {[%clk 0:02:47.5]} 11. Bxf6 {[%clk
0:02:39.7]} 11... Nxf6 {[%clk 0:02:42.7]} 12. Nxf4 {[%clk 0:02:39.4]} 12... Be7
{[%clk 0:02:31.9]} 13. Bc4 {[%clk 0:02:36]} 13... O-O {[%clk 0:02:29.7]} 14.
Nce2 {[%clk 0:02:22.6]} 14... b5 {[%clk 0:02:16.4]} 15. Bb3 {[%clk 0:02:21.8]}
15... Bb7 {[%clk 0:02:10.3]} 16. Ng3 {[%clk 0:02:20.9]} 16... Qa5+ {[%clk
0:01:49]} 17. c3 {[%clk 0:02:18.4]} 17... b4 {[%clk 0:01:45.3]} 18. O-O {[%clk
0:02:16.5]} 18... bxc3 {[%clk 0:01:41.8]} 19. bxc3 {[%clk 0:02:17.1]} 19... Rac8
{[%clk 0:01:40.1]} 20. Ng6 {[%clk 0:02:09.3]} 20... Rfe8 {[%clk 0:01:23.5]} 21.
Nf5 {[%clk 0:02:08.7]} 21... Bxe4 {[%clk 0:01:11.9]} 22. Ngxe7+ {[%clk
0:01:58.2]} 22... Rxe7 {[%clk 0:00:46.5]} 23. Nxe7+ {[%clk 0:01:57.5]} 23... Kf8
{[%clk 0:00:40]} 24. Qg3 {[%clk 0:01:47.5]} 24... Rxc3 {[%clk 0:00:38.6]} 25.
Qxd6 {[%clk 0:01:45.3]} 25... Qc5+ {[%clk 0:00:38.6]} 26. Qxc5 {[%clk
0:01:45.2]} 26... Rxc5 {[%clk 0:00:39.5]} 27. Rae1 {[%clk 0:01:28.8]} 27... Kxe7
{[%clk 0:00:25.7]} 28. Rxf6 {[%clk 0:01:28.3]} 28... Kxf6 {[%clk 0:00:26.6]} 29.
Rxe4 {[%clk 0:01:28.5]} 29... g5 {[%clk 0:00:27.3]} 30. Rc4 {[%clk 0:01:26.8]}
30... Ra5 {[%clk 0:00:18.4]} 31. Rc6+ {[%clk 0:01:26.7]} 31... Ke5 {[%clk
0:00:18.5]} 32. Rxh6 {[%clk 0:01:25.9]} 32... f5 {[%clk 0:00:18.7]} 33. Kf2
{[%clk 0:01:19.9]} 33... g4 {[%clk 0:00:11.6]} 34. g3 {[%clk 0:01:18.4]} 34...
Ra3 {[%clk 0:00:10.6]} 35. Ke3 {[%clk 0:01:14.1]} 35... f4+ {[%clk 0:00:04.2]}
36. gxf4+ {[%clk 0:01:14.6]} 36... Kf5 {[%clk 0:00:04]} 37. Rh5+ {[%clk
0:01:13.2]} 37... Kf6 {[%clk 0:00:03.1]} 38. Ke4 {[%clk 0:01:11.2]} 38... a5
{[%clk 0:00:03.6]} 39. Rh6+ {[%clk 0:01:10.9]} 39... Kg7 {[%clk 0:00:04.1]} 40.
Ra6 {[%clk 0:01:10.1]} 40... g3 {[%clk 0:00:04.4]} 41. hxg3 {[%clk 0:01:09.4]}
41... Kf8 {[%clk 0:00:02.5]} 42. g4 {[%clk 0:01:08.3]} 42... Ke7 {[%clk
0:00:03]} 43. g5 {[%clk 0:01:08.1]} 43... Kd7 {[%clk 0:00:01.6]} 44. g6 {[%clk
0:01:07.6]} 44... Kc7 {[%clk 0:00:02.3]} 45. g7 {[%clk 0:01:07.1]} 45... Rxb3
{[%clk 0:00:03.2]} 46. axb3 {[%clk 0:01:06.1]} 46... Kb7 {[%clk 0:00:04.1]} 47.
Rxa5 {[%clk 0:01:05.9]} 47... Kb6 {[%clk 0:00:05]} 48. Ra4 {[%clk 0:01:05.9]}
48... Kb7 {[%clk 0:00:05.9]} 49. Ke5 {[%clk 0:01:05.7]} 49... Kc7 {[%clk
0:00:06.8]} 50. Kf6 {[%clk 0:01:05.9]} 50... Kc6 {[%clk 0:00:07.7]} 51. Kf7
{[%clk 0:01:06.2]} 51... Kd7 {[%clk 0:00:08.6]} 52. f5 {[%clk 0:01:06.5]} 52...
Kd6 {[%clk 0:00:09.5]} 53. f6 {[%clk 0:01:06.8]} 53... Ke5 {[%clk 0:00:10]} 54.
Kg6 {[%clk 0:01:06.8]} 54... Ke6 {[%clk 0:00:10.3]} 55. f7 {[%clk 0:01:07]}
55... Kd7 {[%clk 0:00:09.7]} 56. f8=B {[%clk 0:01:01.4]} 56... Ke8 {[%clk
0:00:09.1]} 57. Ba3 {[%clk 0:01:00]} 57... Kd7 {[%clk 0:00:09.4]} 58. Rc4 {[%clk
0:01:00]} 58... Ke6 {[%clk 0:00:07.8]} 59. b4 {[%clk 0:01:00]} 59... Kd5 {[%clk
0:00:08]} 60. Rc1 {[%clk 0:00:58.6]} 60... Ke4 {[%clk 0:00:08.9]} 61. b5 {[%clk
0:00:58.2]} 61... Kf3 {[%clk 0:00:08.6]} 62. b6 {[%clk 0:00:58.4]} 62... Kf4
{[%clk 0:00:08.7]} 63. b7 {[%clk 0:00:58.6]} 63... Kg4 {[%clk 0:00:09.6]} 64.
b8=B {[%clk 0:00:57.7]} 64... Kf3 {[%clk 0:00:10.5]} 65. g8=B {[%clk 0:00:55.4]}
65... Kg4 {[%clk 0:00:11.4]} 66. Rc3 {[%clk 0:00:52.6]} 66... Kh4 {[%clk
0:00:10.8]} 67. Bb2 {[%clk 0:00:50.3]} 67... Kg4 {[%clk 0:00:10.6]} 68. Bc1
{[%clk 0:00:50.3]} 68... Kh4 {[%clk 0:00:10.4]} 69. Bd2 {[%clk 0:00:50.6]} 69...
Kg4 {[%clk 0:00:10.7]} 70. Ba7 {[%clk 0:00:51]} 70... Kh4 {[%clk 0:00:09.5]} 71.
Bg1 {[%clk 0:00:50.7]} 71... Kg4 {[%clk 0:00:09.7]} 72. Bh2 {[%clk 0:00:50.6]}
72... Kh4 {[%clk 0:00:10.1]} 73. Be1+ {[%clk 0:00:50.5]} 73... Kg4 {[%clk
0:00:09.9]} 74. Be6# {[%clk 0:00:51.2]} 1-0

[Event "*** Titled Tuesday Blitz"]
[Site "Chess.com"]
[Date "2020.05.26"]
[Round "10"]
[White "NormWeinstein"]
[Black "Mbneu"]
[Result "1/2-1/2"]
[WhiteElo "2364"]
[BlackElo "2240"]
[TimeControl "180+1"]
[EndTime "12:03:59 PDT"]
[Termination "Game drawn - insufficient material"]

1. e4 {[%clk 0:02:56.8]} 1... c5 {[%clk 0:02:59.3]} 2. Nf3 {[%clk 0:02:56.8]}
2... Nf6 {[%clk 0:02:59.9]} 3. Nc3 {[%clk 0:02:56.8]} 3... d5 {[%clk 0:02:59.2]}
4. Bb5+ {[%clk 0:02:56.4]} 4... Bd7 {[%clk 0:02:58.5]} 5. Bxd7+ {[%clk
0:02:53.1]} 5... Qxd7 {[%clk 0:02:58.4]} 6. e5 {[%clk 0:02:52.2]} 6... Ne4
{[%clk 0:02:56.2]} 7. O-O {[%clk 0:02:48.2]} 7... Nxc3 {[%clk 0:02:52.3]} 8.
dxc3 {[%clk 0:02:46.3]} 8... e6 {[%clk 0:02:52.8]} 9. Bg5 {[%clk 0:02:36.4]}
9... Nc6 {[%clk 0:02:50.9]} 10. Re1 {[%clk 0:02:35.6]} 10... Be7 {[%clk
0:02:50.4]} 11. Bxe7 {[%clk 0:02:25.3]} 11... Qxe7 {[%clk 0:02:51.3]} 12. c4
{[%clk 0:02:22.8]} 12... Rd8 {[%clk 0:02:39.8]} 13. cxd5 {[%clk 0:02:21.7]}
13... Rxd5 {[%clk 0:02:39.4]} 14. Qe2 {[%clk 0:02:21.5]} 14... O-O {[%clk
0:02:35.3]} 15. h3 {[%clk 0:02:20.7]} 15... Rfd8 {[%clk 0:02:34.1]} 16. c3
{[%clk 0:02:19.3]} 16... h6 {[%clk 0:02:25.8]} 17. Qc4 {[%clk 0:02:07.6]} 17...
Qc7 {[%clk 0:02:16.5]} 18. Qe4 {[%clk 0:02:04]} 18... Ne7 {[%clk 0:02:15.6]} 19.
Re2 {[%clk 0:01:53.5]} 19... Qc6 {[%clk 0:02:13.1]} 20. Rae1 {[%clk 0:01:51.9]}
20... Rd1 {[%clk 0:02:06.2]} 21. Qc4 {[%clk 0:01:27.1]} 21... Qd5 {[%clk
0:01:34.4]} 22. Qa4 {[%clk 0:01:24.8]} 22... a6 {[%clk 0:01:30.2]} 23. Qa5
{[%clk 0:01:12.3]} 23... Nc6 {[%clk 0:01:15.4]} 24. Qb6 {[%clk 0:01:11.7]} 24...
Rd7 {[%clk 0:01:13.6]} 25. Qb3 {[%clk 0:01:04.7]} 25... Qxb3 {[%clk 0:01:08.6]}
26. axb3 {[%clk 0:01:04.7]} 26... Na5 {[%clk 0:01:04.6]} 27. b4 {[%clk
0:00:58.9]} 27... cxb4 {[%clk 0:01:03.5]} 28. cxb4 {[%clk 0:00:58.8]} 28... Nc6
{[%clk 0:01:03.3]} 29. Re4 {[%clk 0:00:53.6]} 29... Rxe1+ {[%clk 0:00:54.8]} 30.
Nxe1 {[%clk 0:00:53.9]} 30... Rd2 {[%clk 0:00:53.7]} 31. b3 {[%clk 0:00:48.1]}
31... Rb2 {[%clk 0:00:51.6]} 32. Re3 {[%clk 0:00:41.1]} 32... Nxb4 {[%clk
0:00:50.3]} 33. Nf3 {[%clk 0:00:41.6]} 33... Nd5 {[%clk 0:00:40.7]} 34. Rd3
{[%clk 0:00:41.6]} 34... b5 {[%clk 0:00:36.4]} 35. g3 {[%clk 0:00:41.3]} 35...
Rc2 {[%clk 0:00:32.1]} 36. Kg2 {[%clk 0:00:31.5]} 36... Rc3 {[%clk 0:00:32.2]}
37. Rd1 {[%clk 0:00:30.2]} 37... Rxb3 {[%clk 0:00:31.9]} 38. Ra1 {[%clk
0:00:30.7]} 38... Nc7 {[%clk 0:00:31.1]} 39. Nd4 {[%clk 0:00:30.1]} 39... Rd3
{[%clk 0:00:28.7]} 40. Nc6 {[%clk 0:00:29.9]} 40... Rc3 {[%clk 0:00:26.9]} 41.
Nd4 {[%clk 0:00:27.5]} 41... Rc4 {[%clk 0:00:25.5]} 42. Nb3 {[%clk 0:00:27.3]}
42... Kf8 {[%clk 0:00:21.8]} 43. Rd1 {[%clk 0:00:26.1]} 43... Ke7 {[%clk
0:00:21.7]} 44. Na5 {[%clk 0:00:24.1]} 44... Rc2 {[%clk 0:00:19.7]} 45. Rd6
{[%clk 0:00:21.7]} 45... b4 {[%clk 0:00:18.2]} 46. Nc6+ {[%clk 0:00:21.1]} 46...
Kf8 {[%clk 0:00:16.1]} 47. Nxb4 {[%clk 0:00:21.3]} 47... Rc4 {[%clk 0:00:14.6]}
48. Nc6 {[%clk 0:00:20.9]} 48... a5 {[%clk 0:00:14.3]} 49. Nxa5 {[%clk
0:00:18.3]} 49... Rc5 {[%clk 0:00:14.4]} 50. Nc6 {[%clk 0:00:18.3]} 50... f6
{[%clk 0:00:13.8]} 51. exf6 {[%clk 0:00:14.6]} 51... gxf6 {[%clk 0:00:13.6]} 52.
Nb8 {[%clk 0:00:12.4]} 52... Ne8 {[%clk 0:00:12.9]} 53. Nd7+ {[%clk 0:00:11.1]}
53... Ke7 {[%clk 0:00:13]} 54. Nxc5 {[%clk 0:00:08.6]} 54... Kxd6 {[%clk
0:00:13]} 55. Ne4+ {[%clk 0:00:09.1]} 55... Ke7 {[%clk 0:00:12.9]} 56. f4 {[%clk
0:00:08.4]} 56... Ng7 {[%clk 0:00:13.4]} 57. Kf3 {[%clk 0:00:08.3]} 57... Nf5
{[%clk 0:00:14]} 58. g4 {[%clk 0:00:08.7]} 58... Nd4+ {[%clk 0:00:14.6]} 59. Kg3
{[%clk 0:00:09.2]} 59... f5 {[%clk 0:00:13.8]} 60. Nf2 {[%clk 0:00:08.7]} 60...
fxg4 {[%clk 0:00:13.5]} 61. hxg4 {[%clk 0:00:08.4]} 61... Kf6 {[%clk 0:00:13.2]}
62. Nd3 {[%clk 0:00:08.3]} 62... Nc6 {[%clk 0:00:12.7]} 63. Kf3 {[%clk 0:00:08]}
63... e5 {[%clk 0:00:13.1]} 64. fxe5+ {[%clk 0:00:06.6]} 64... Nxe5+ {[%clk
0:00:13.2]} 65. Nxe5 {[%clk 0:00:06.3]} 65... Kxe5 {[%clk 0:00:14.1]} 66. Kg3
{[%clk 0:00:06.5]} 66... Kf6 {[%clk 0:00:15]} 67. Kh4 {[%clk 0:00:06.5]} 67...
Kg6 {[%clk 0:00:15.9]} 68. Kh3 {[%clk 0:00:06.8]} 68... Kg5 {[%clk 0:00:15.8]}
69. Kg3 {[%clk 0:00:07.2]} 69... h5 {[%clk 0:00:15.9]} 70. gxh5 {[%clk
0:00:07.2]} 70... Kxh5 {[%clk 0:00:16.8]} 1/2-1/2

[Event "*** Titled Tuesday Blitz"]
[Site "Chess.com"]
[Date "2020.05.26"]
[Round "10"]
[White "druskacik"]
[Black "124chess"]
[Result "1/2-1/2"]
[WhiteElo "2603"]
[BlackElo "2753"]
[TimeControl "180+1"]
[EndTime "12:04:00 PDT"]
[Termination "Game drawn - insufficient material"]

1. e4 {[%clk 0:02:52.5]} 1... d6 {[%clk 0:03:00.9]} 2. d4 {[%clk 0:02:52.3]}
2... Nf6 {[%clk 0:03:01.8]} 3. Nc3 {[%clk 0:02:52.3]} 3... e5 {[%clk 0:03:02.5]}
4. dxe5 {[%clk 0:02:49.1]} 4... dxe5 {[%clk 0:03:03.4]} 5. Qxd8+ {[%clk
0:02:49.3]} 5... Kxd8 {[%clk 0:03:04.1]} 6. f3 {[%clk 0:02:46.5]} 6... Be6
{[%clk 0:03:02.5]} 7. Bd2 {[%clk 0:02:45.2]} 7... Nbd7 {[%clk 0:03:02.5]} 8.
Nge2 {[%clk 0:02:45.4]} 8... c6 {[%clk 0:03:01.8]} 9. Nc1 {[%clk 0:02:45.2]}
9... Kc7 {[%clk 0:02:57.3]} 10. Nd3 {[%clk 0:02:44.5]} 10... Bd6 {[%clk
0:02:57.8]} 11. O-O-O {[%clk 0:02:44.2]} 11... Nc5 {[%clk 0:02:57.9]} 12. Be3
{[%clk 0:02:39.9]} 12... Nxd3+ {[%clk 0:02:56.9]} 13. Bxd3 {[%clk 0:02:34.9]}
13... Nd7 {[%clk 0:02:55.9]} 14. Rd2 {[%clk 0:02:29.7]} 14... Bc5 {[%clk
0:02:54.7]} 15. Bxc5 {[%clk 0:02:28.7]} 15... Nxc5 {[%clk 0:02:55.6]} 16. Rhd1
{[%clk 0:02:27]} 16... a5 {[%clk 0:02:55]} 17. Bf1 {[%clk 0:02:23.2]} 17... b5
{[%clk 0:02:54]} 18. Kb1 {[%clk 0:02:23.1]} 18... b4 {[%clk 0:02:51.7]} 19. Ne2
{[%clk 0:02:22.5]} 19... a4 {[%clk 0:02:51.6]} 20. Nc1 {[%clk 0:02:22.6]} 20...
Rhd8 {[%clk 0:02:28.9]} 21. Rxd8 {[%clk 0:02:21.3]} 21... Rxd8 {[%clk
0:02:29.8]} 22. Rxd8 {[%clk 0:02:21.7]} 22... Kxd8 {[%clk 0:02:30.7]} 23. Nd3
{[%clk 0:02:14.4]} 23... Nxd3 {[%clk 0:02:13.4]} 24. Bxd3 {[%clk 0:02:15.3]}
24... c5 {[%clk 0:02:14.1]} 25. a3 {[%clk 0:02:07.7]} 25... Kc7 {[%clk
0:02:05.6]} 26. c3 {[%clk 0:01:51.1]} 26... c4 {[%clk 0:01:40.4]} 27. Be2 {[%clk
0:01:50.3]} 27... b3 {[%clk 0:01:40.8]} 28. Kc1 {[%clk 0:01:49.5]} 28... Kd6
{[%clk 0:01:40.6]} 29. Kd2 {[%clk 0:01:49.8]} 29... Kc5 {[%clk 0:01:40.4]} 30.
Ke3 {[%clk 0:01:50.2]} 30... g5 {[%clk 0:01:39.5]} 31. g3 {[%clk 0:01:48.9]}
31... f6 {[%clk 0:01:38.9]} 32. h4 {[%clk 0:01:41.8]} 32... h6 {[%clk
0:01:38.3]} 33. f4 {[%clk 0:01:40.7]} 33... exf4+ {[%clk 0:01:37.7]} 34. gxf4
{[%clk 0:01:39.3]} 34... gxh4 {[%clk 0:01:35.9]} 35. Bf3 {[%clk 0:01:34.1]}
35... Bc8 {[%clk 0:01:22.1]} 36. Bg2 {[%clk 0:01:26.9]} 36... Bb7 {[%clk
0:01:21.1]} 37. Bh3 {[%clk 0:01:26.8]} 37... Bc6 {[%clk 0:01:19.4]} 38. Be6
{[%clk 0:01:19.3]} 38... Kd6 {[%clk 0:01:09.4]} 39. Bxc4 {[%clk 0:01:17.7]}
39... h3 {[%clk 0:01:08.5]} 40. Kf2 {[%clk 0:00:52.7]} 40... f5 {[%clk
0:00:52.5]} 41. Kg3 {[%clk 0:00:43.9]} 41... fxe4 {[%clk 0:00:51.2]} 42. Kxh3
{[%clk 0:00:42.9]} 42... e3 {[%clk 0:00:50.6]} 43. Kg3 {[%clk 0:00:41.6]} 43...
Ke7 {[%clk 0:00:31.7]} 44. f5 {[%clk 0:00:39.3]} 44... Kf6 {[%clk 0:00:18.8]}
45. Kf4 {[%clk 0:00:39.6]} 45... Bd7 {[%clk 0:00:19]} 46. Be2 {[%clk 0:00:29.7]}
46... Bxf5 {[%clk 0:00:17.2]} 47. Kxe3 {[%clk 0:00:30.6]} 47... Bd7 {[%clk
0:00:16.9]} 48. Kf4 {[%clk 0:00:30.6]} 48... Bc6 {[%clk 0:00:16.2]} 49. Bg4
{[%clk 0:00:25]} 49... Be8 {[%clk 0:00:15]} 50. Be2 {[%clk 0:00:22.8]} 50... Bc6
{[%clk 0:00:14.4]} 51. Ba6 {[%clk 0:00:22.4]} 51... Ke6 {[%clk 0:00:13.3]} 52.
Kg4 {[%clk 0:00:21.6]} 52... Ke5 {[%clk 0:00:12.7]} 53. Kh5 {[%clk 0:00:21.5]}
53... Ke4 {[%clk 0:00:11.6]} 54. c4 {[%clk 0:00:21.9]} 54... Kd3 {[%clk
0:00:06.1]} 55. Bb5 {[%clk 0:00:21]} 55... Bf3+ {[%clk 0:00:04.4]} 56. Kxh6
{[%clk 0:00:21]} 56... Kc2 {[%clk 0:00:05.3]} 57. Bxa4 {[%clk 0:00:18.7]} 57...
Kxb2 {[%clk 0:00:05]} 58. Bxb3 {[%clk 0:00:17.8]} 58... Kxb3 {[%clk 0:00:04.5]}
59. Kg5 {[%clk 0:00:18.7]} 59... Bc6 {[%clk 0:00:04.6]} 60. a4 {[%clk
0:00:19.6]} 60... Kxc4 {[%clk 0:00:05.5]} 61. a5 {[%clk 0:00:20.5]} 61... Kb5
{[%clk 0:00:05.7]} 62. a6 {[%clk 0:00:21.4]} 62... Kxa6 {[%clk 0:00:06.6]}
1/2-1/2

[Event "*** Titled Tuesday Blitz"]
[Site "Chess.com"]
[Date "2020.05.26"]
[Round "10"]
[White "OparinGrigoriy"]
[Black "BocharovD"]
[Result "1-0"]
[WhiteElo "2913"]
[BlackElo "2836"]
[TimeControl "180+1"]
[EndTime "12:04:01 PDT"]
[Termination "OparinGrigoriy won by resignation"]

1. Nf3 {[%clk 0:03:00.9]} 1... c5 {[%clk 0:02:59.1]} 2. c4 {[%clk 0:03:00.5]}
2... Nc6 {[%clk 0:02:57.3]} 3. d4 {[%clk 0:03:00.9]} 3... cxd4 {[%clk
0:02:57.6]} 4. Nxd4 {[%clk 0:03:01.8]} 4... Nf6 {[%clk 0:02:57.9]} 5. Nc3 {[%clk
0:03:02.4]} 5... e6 {[%clk 0:02:58.4]} 6. e4 {[%clk 0:03:02.8]} 6... Bb4 {[%clk
0:02:57.5]} 7. Nxc6 {[%clk 0:03:03.1]} 7... bxc6 {[%clk 0:02:58.4]} 8. Bd3
{[%clk 0:03:03.3]} 8... e5 {[%clk 0:02:58.6]} 9. O-O {[%clk 0:03:03.2]} 9... Bc5
{[%clk 0:02:58.9]} 10. Rb1 {[%clk 0:03:02.4]} 10... a5 {[%clk 0:02:58.1]} 11.
Na4 {[%clk 0:02:54.3]} 11... Bd4 {[%clk 0:02:57.5]} 12. Re1 {[%clk 0:02:53.4]}
12... d6 {[%clk 0:02:53.6]} 13. Be3 {[%clk 0:02:52.9]} 13... Bxe3 {[%clk
0:02:52.2]} 14. Rxe3 {[%clk 0:02:52.6]} 14... c5 {[%clk 0:02:48]} 15. Nc3 {[%clk
0:02:51.4]} 15... O-O {[%clk 0:02:47.5]} 16. Be2 {[%clk 0:02:51.4]} 16... Bb7
{[%clk 0:02:43.1]} 17. Qd2 {[%clk 0:02:43.8]} 17... Qe7 {[%clk 0:02:41.9]} 18.
Rd1 {[%clk 0:02:44.2]} 18... Rfd8 {[%clk 0:02:41.7]} 19. Bf3 {[%clk 0:02:42.7]}
19... a4 {[%clk 0:02:37.3]} 20. Rd3 {[%clk 0:02:41.8]} 20... Ne8 {[%clk
0:02:33.1]} 21. Nb5 {[%clk 0:02:17.5]} 21... Ba6 {[%clk 0:02:32.9]} 22. Be2
{[%clk 0:02:03.7]} 22... Bb7 {[%clk 0:02:07.2]} 23. Qe3 {[%clk 0:01:19.9]} 23...
h6 {[%clk 0:02:02.4]} 24. h3 {[%clk 0:01:15.1]} 24... Bc6 {[%clk 0:02:02.3]} 25.
Nxd6 {[%clk 0:00:57]} 25... Rxd6 {[%clk 0:01:21]} 26. Rxd6 {[%clk 0:00:56.7]}
26... Nxd6 {[%clk 0:01:21.9]} 27. Qxc5 {[%clk 0:00:57.3]} 27... Bxe4 {[%clk
0:01:22.1]} 28. Qxd6 {[%clk 0:00:51.4]} 28... Qg5 {[%clk 0:01:22]} 29. Bf1
{[%clk 0:00:44.4]} 29... Rc8 {[%clk 0:01:17.1]} 30. Qd7 {[%clk 0:00:32.3]} 30...
Rb8 {[%clk 0:01:16.2]} 31. Rd2 {[%clk 0:00:27]} 31... Bc6 {[%clk 0:01:07.6]} 32.
Qd6 {[%clk 0:00:26.7]} 32... Rc8 {[%clk 0:01:03.2]} 33. c5 {[%clk 0:00:26.4]}
33... e4 {[%clk 0:01:01.6]} 34. Rd4 {[%clk 0:00:18.1]} 34... e3 {[%clk
0:00:59.2]} 35. Rg4 {[%clk 0:00:15.5]} 35... exf2+ {[%clk 0:00:57.5]} 36. Kxf2
{[%clk 0:00:16.4]} 36... Qf5+ {[%clk 0:00:51.3]} 37. Kg1 {[%clk 0:00:16.7]}
37... Be4 {[%clk 0:00:50.1]} 38. Rf4 {[%clk 0:00:14.4]} 38... Qh7 {[%clk
0:00:33.7]} 39. Qd7 {[%clk 0:00:11.7]} 39... Rf8 {[%clk 0:00:33.2]} 40. c6
{[%clk 0:00:11.3]} 40... Qg6 {[%clk 0:00:31]} 41. c7 {[%clk 0:00:11.7]} 41...
Qb6+ {[%clk 0:00:30.6]} 42. Kh2 {[%clk 0:00:11.9]} 42... Bb7 {[%clk 0:00:26.5]}
43. Bc4 {[%clk 0:00:12.1]} 43... Qg6 {[%clk 0:00:23.8]} 44. Qg4 {[%clk
0:00:07.2]} 44... Qd6 {[%clk 0:00:22.9]} 45. Qg3 {[%clk 0:00:07]} 45... Qxc7
{[%clk 0:00:21.7]} 46. b3 {[%clk 0:00:04.2]} 46... axb3 {[%clk 0:00:21.5]} 47.
Bxb3 {[%clk 0:00:05.1]} 47... Qc5 {[%clk 0:00:19.9]} 48. Qf2 {[%clk 0:00:03.5]}
48... Qxf2 {[%clk 0:00:19.3]} 49. Rxf2 {[%clk 0:00:04.4]} 49... g6 {[%clk
0:00:14.2]} 50. Rf6 {[%clk 0:00:04.8]} 50... Kg7 {[%clk 0:00:14.6]} 51. Rb6
{[%clk 0:00:05.4]} 51... Be4 {[%clk 0:00:15.2]} 52. Rb4 {[%clk 0:00:05.4]} 52...
f5 {[%clk 0:00:15.3]} 53. Rd4 {[%clk 0:00:04.8]} 53... Rb8 {[%clk 0:00:14.5]}
54. Rd7+ {[%clk 0:00:05.1]} 54... Kf6 {[%clk 0:00:14.7]} 55. Rd6+ {[%clk
0:00:05.8]} 55... Kg5 {[%clk 0:00:15]} 56. g3 {[%clk 0:00:05.3]} 56... Rb7
{[%clk 0:00:12.9]} 57. h4+ {[%clk 0:00:03.8]} 57... Kg4 {[%clk 0:00:03.8]} 58.
Bd1+ {[%clk 0:00:04.7]} 58... Bf3 {[%clk 0:00:03.9]} 59. Rd4+ {[%clk 0:00:05.2]}
1-0